[Event "44th Chess Olympiad Open 2022"]
[Site "Chennai"]
[Date "2022.08.08"]
[Round "10.24"]
[White "Kanyamarala, Tarun"]
[Black "Kurmann, Oliver"]
[Result "1/2-1/2"]
[ECO "D02"]
[WhiteElo "2379"]
[BlackElo "2463"]
[Annotator "TA"]
[PlyCount "122"]
[EventDate "2022.07.29"]
[EventType "team-tourn"]
[EventCountry "IND"]
[SourceTitle "playchess.com"]
[Source "ChessBase"]
[SourceQuality "1"]
[WhiteTeam "Ireland"]
[BlackTeam "Switzerland"]
[WhiteTeamCountry "IRL"]
[BlackTeamCountry "SUI"]
[TimeControl "40/5400+30:1800+30"]

{[%evp 9,122,3,6,0,11,0,0,-7,16,17,21,22,27,3,10,0,6,0,0,0,6,5,7,0,0,0,0,0,0,0,0,0,0,0,-5,-5,0,0,0,0,0,0,0,0,0,0,0,0,0,0,0,0,0,0,0,0,0,0,12,8,16,23,35,0,92,80,121,43,234,20,23,0,0,0,6,0,0,0,0,0,0,0,0,0,0,0,0,0,0,0,0,0,0,0,0,0,0,0,0,0,0,0,0,0,0,0,0,0,0,0,0,0,0,0,0]} 1. d4 {[%emt 0:00:03]} Nf6 {[%emt 0:00:08]} 2. Nf3 {[%emt 0:00:09]} e6 {[%emt 0:00:11]} 3. Bf4 {[%emt 0:00:11]} d5 {[%emt 0:00:30]} 4. e3 {[%emt 0:00:20]} Bd6 {[%emt 0:00:17]} 5. c3 {[%emt 0:04:05]} O-O {[%emt 0:00:24]} 6. Nbd2 {[%emt 0:02:16] D02: 1 d4 d5 2 Nf3 sidelines, including 2...Nf6 3 g3 and 2...Nf6 3 Bf4.} b6 {[%emt 0:02:37]} 7. Ne5 {[%emt 0:01:43]} c5 {[%emt 0:01:33]} 8. Qf3 {[%emt 0:19:10] 8.h4 is a critical line.} Ba6 {[%emt 0:15:55]} 9. Bxa6 {[%emt 0:04:22]} Nxa6 {[%emt 0:00:02]} 10. Bg5 {[%emt 0:01:15]} Rc8 {[%emt 0:22:59] [#]} 11. O-O $146 {[%emt 0:13:41]} (11. Ng4 $5 {[%cal Rg4f6]} Be7 12. Bxf6 Bxf6 13. Nxf6+ Qxf6 14. Qxf6 gxf6 15. O-O $11) ({Predecessor:} 11. h4 Be7 12. h5 Ne8 13. Bf4 f6 14. Ng6 Rf7 15. Qg4 Nac7 16. h6 Bd6 17. Bxd6 Nxd6 {1-0 (36) Tang,A (2490)-Zhao,J (2627) Chess.com INT 2019}) 11... Be7 {[%emt 0:00:18]} 12. Qe2 {[%emt 0:06:40]} Nb8 {[%emt 0:01:37]} 13. dxc5 {[%emt 0:02:47]} bxc5 {[%emt 0:13:17]} 14. e4 {[%emt 0:00:24]} Nc6 {[%emt 0:06:14]} 15. Nxc6 {[%emt 0:07:00]} Rxc6 {[%emt 0:00:03]} 16. Rfe1 {[%emt 0:01:12]} Nxe4 {[%emt 0:05:44]} 17. Bxe7 {[%emt 0:00:42]} Qxe7 {[%emt 0:00:02]} 18. Nxe4 {[%emt 0:00:24]} dxe4 {[%emt 0:00:06]} 19. Qxe4 {[%emt 0:00:54]} Rd6 {[%emt 0:00:08]} 20. Rad1 {[%emt 0:03:11]} Rfd8 {[%emt 0:00:10]} 21. Rxd6 {[%emt 0:00:30]} Qxd6 $11 {[%emt 0:00:02][%mdl 4096] Endgame KQR-KQR} 22. g3 {[%emt 0:03:01]} g6 {[%emt 0:07:29]} 23. Qe5 {[%emt 0:12:50]} Qd2 {[%emt 0:10:14]} 24. Re2 {[%emt 0:04:31]} Qd1+ {[%emt 0:00:01]} 25. Kg2 {[%emt 0:00:27]} Rd5 {[%emt 0:01:42]} 26. Qe3 {[%emt 0:01:36]} h5 {[%emt 0:00:29]} 27. h4 {[%emt 0:00:52]} Qb1 {[%emt 0:02:40]} 28. b3 {[%emt 0:02:04]} Qd1 {[%emt 0:01:06]} 29. Qf3 {[%emt 0:01:42]} a5 {[%emt 0:02:21]} 30. c4 {[%emt 0:01:04]} Rd2 {[%emt 0:04:37]} 31. Re5 {[%emt 0:02:05]} Qxf3+ {[%emt 0:01:05]} 32. Kxf3 {[%emt 0:00:02]} Rxa2 {[%emt 0:00:05]} 33. Rxc5 {[%emt 0:00:07] KR-KR} Ra3 {[%emt 0:01:19]} 34. Ke4 {[%emt 0:00:13] And now Ke5 would win.} Rxb3 {[%emt 0:00:07]} 35. Rxa5 {[%emt 0:00:09]} Rb2 {[%emt 0:01:32]} 36. f3 {[%emt 0:05:54]} Re2+ {[%emt 0:00:37]} (36... f6 $11) 37. Kd4 $16 {[%emt 0:00:08]} Rd2+ {[%emt 0:00:26]} 38. Ke5 {[%emt 0:00:21]} (38. Kc3 $16 Rf2 39. f4) 38... Rd3 $2 {[%emt 0:00:19]} ({Black should play} 38... Kg7 $1 $14) 39. Ke4 $2 {[%emt 0:00:42]} (39. c5 $18 {Strongly threatening c6.} Rd5+ 40. Kf6 Rf5+ 41. Ke7) 39... Rd1 {[%emt 0:00:52]} 40. Ra8+ {[%emt 0:01:05]} Kg7 {[%emt 0:00:02] The position is equal.} 41. Ra3 {[%emt 0:09:00]} Kf6 {[%emt 0:01:46]} 42. Rd3 {[%emt 0:10:33]} Rc1 {[%emt 0:04:44]} 43. Kd4 {[%emt 0:00:08]} g5 {[%emt 0:00:08]} 44. hxg5+ {[%emt 0:05:29]} Kxg5 {[%emt 0:04:11]} 45. c5 {[%emt 0:00:37]} e5+ {[%emt 0:02:30]} 46. Kd5 {[%emt 0:00:08] [#] Threatens to win with Re3.} f5 {[%emt 0:00:08]} 47. Re3 {[%emt 0:00:46]} h4 {[%emt 0:09:34]} 48. gxh4+ {[%emt 0:03:17]} Kxh4 {[%emt 0:00:01]} 49. Rxe5 {[%emt 0:01:20]} f4 {[%emt 0:00:02]} 50. c6 {[%emt 0:02:32]} Kg3 {[%emt 0:00:02]} 51. Kd6 {[%emt 0:00:47]} Kxf3 {[%emt 0:00:16]} 52. c7 {[%emt 0:01:04]} Rxc7 {[%emt 0:05:37]} 53. Kxc7 $11 {[%emt 0:00:01] KR-KP} Kg2 {[%emt 0:00:13]} 54. Rg5+ {[%emt 0:00:09]} Kh2 {[%emt 0:00:07]} 55. Rf5 {[%emt 0:00:53]} Kg3 {[%emt 0:00:02]} 56. Kd6 {[%emt 0:00:52] [#] White wants to mate with Kd5.} f3 {[%emt 0:00:09]} 57. Ke5 {[%emt 0:00:11]} f2 {[%emt 0:00:06]} 58. Ke4 {[%emt 0:00:10] Threatening mate with Ke3.} Kg2 {[%emt 0:00:08]} 59. Rg5+ {[%emt 0:00:25]} Kh2 {[%emt 0:00:19]} 60. Rf5 {[%emt 0:00:13]} Kg2 {[%emt 0:00:10]} 61. Rxf2+ {[%emt 0:00:12]} Kxf2 {[%emt 0:00:04] Weighted Error Value: White=0.12 (very precise) /Black=0.12 (very precise)} 1/2-1/2

[Event "44th Chess Olympiad Open 2022"]
[Site "Chennai"]
[Date "2022.08.08"]
[Round "10.25"]
[White "Stanojoski, Zvonko"]
[Black "Amin, Bassem"]
[Result "0-1"]
[ECO "C60"]
[WhiteElo "2412"]
[BlackElo "2680"]
[Annotator "TA"]
[PlyCount "94"]
[EventDate "2022.07.29"]
[EventType "team-tourn"]
[EventCountry "IND"]
[SourceTitle "playchess.com"]
[Source "ChessBase"]
[SourceQuality "1"]
[WhiteTeam "Macedonia"]
[BlackTeam "Egypt"]
[WhiteTeamCountry "MKD"]
[BlackTeamCountry "EGY"]
[TimeControl "40/5400+30:1800+30"]

{[%evp 11,94,28,31,18,35,21,33,9,6,12,23,30,39,0,23,-29,-26,-58,-49,-56,-59,-49,-27,-73,-67,-71,-89,-72,-77,-82,-68,-109,-104,-116,-87,-130,-71,-63,-64,-65,-63,-71,-47,-77,-71,-89,-93,-87,-77,-72,-46,-89,-89,-90,-89,-89,-89,-102,-92,-96,-86,-86,-43,-86,-86,-86,-86,-86,-86,-86,-86,-86,-93,-85,-85,-91,-91,-280,-274,-291,-280,-287,-299,-287,-287]} 1. e4 {[%emt 0:00:20]} e5 {[%emt 0:00:43]} 2. Nf3 {[%emt 0:00:10]} Nc6 {[%emt 0:00:05]} 3. Bb5 {[%emt 0:00:33]} Nge7 {[%emt 0:00:59]} 4. d4 {[%emt 0:00:59]} exd4 {[%emt 0:00:12]} 5. O-O {[%emt 0:01:27]} g6 {[%emt 0:05:41]} 6. Nxd4 {[%emt 0:05:15]} Bg7 {[%emt 0:00:10]} 7. Nxc6 {[%emt 0:00:22] C60: Ruy Lopez: Unusual Black 3rd moves and 3...g6.} bxc6 {[%emt 0:01:29]} 8. Ba4 {[%emt 0:01:48]} O-O {[%emt 0:00:09]} 9. c3 {[%emt 0:00:29] [#] White is slightly better.} d6 $146 {[%emt 0:11:08]} ({Predecessor:} 9... c5 10. Be3 d6 11. Nd2 Be6 12. Bb3 Qd7 13. Bxe6 Qxe6 14. Qc2 Rab8 15. b3 Nc6 {0-1 (37) Leben,D (1899)-Osolin,B (2012) Ljubljana 2017}) 10. Bg5 {[%emt 0:03:06]} c5 {[%emt 0:01:11]} 11. Qd2 {[%emt 0:00:32]} Rb8 {[%emt 0:01:11]} 12. Re1 {[%emt 0:19:20]} Be6 {[%emt 0:17:43]} 13. e5 {[%emt 0:00:00]} ({White should play} 13. h3) 13... h6 $11 {[%emt 0:03:16]} 14. exd6 {[%emt 0:00:00]} cxd6 {[%emt 0:00:05]} (14... hxg5 15. dxe7 Qxe7 16. Bb3 $14) 15. Bxh6 {[%emt 0:00:24]} Bxh6 {[%emt 0:00:31]} 16. Qxh6 {[%emt 0:00:07]} Rxb2 {[%emt 0:00:22]} 17. Bb3 {[%emt 0:02:21]} (17. Qc1 $11 Rxa2 18. Rxa2 Bxa2 19. Nd2) 17... c4 $17 {[%emt 0:01:35]} (17... Nf5 18. Qc1 Bxb3 19. Qxb2 $16) 18. Qc1 {[%emt 0:05:55]} Rxb1 {[%emt 0:00:19]} ({Much less strong is} 18... cxb3 19. Qxb2 bxa2 20. Nd2 $16) 19. Qxb1 {[%emt 0:00:07] [#] Threatens to win with Ba4.} cxb3 {[%emt 0:00:06]} 20. axb3 {[%emt 0:00:06]} Qb6 {[%emt 0:00:26]} 21. b4 {[%emt 0:00:15]} Rc8 {[%emt 0:02:37]} 22. Ra3 {[%emt 0:03:14]} Rc7 {[%emt 0:06:46]} 23. Qa1 {[%emt 0:03:27]} Bc4 {[%emt 0:00:54] Prevents Ra6.} (23... Nf5 $142 24. Qd1 d5) 24. Qc1 {[%emt 0:00:18]} Kg7 {[%emt 0:05:01]} 25. h4 {[%emt 0:01:23]} d5 {[%emt 0:01:49]} 26. Qf4 {[%emt 0:00:21][%cal Oh4h5]} Rb7 {[%emt 0:02:08][%cal Bc7b7,Bb7e7,Be7e2][%mdl 32]} ({Much weaker is} 26... f6 27. Ra5 $11) 27. h5 {[%emt 0:02:19][%mdl 64] [#] Decoy} gxh5 {[%emt 0:00:24]} (27... f6 28. Ra5 $11) 28. Qe5+ {[%emt 0:00:16]} Qf6 {[%emt 0:01:52]} 29. Qxh5 {[%emt 0:04:07]} Ng6 {[%emt 0:01:33]} 30. Re3 {[%emt 0:05:39]} a6 {[%emt 0:01:44]} 31. Rh3 {[%emt 0:00:00]} Re7 {[%emt 0:00:43] And now ...Re1+ would win.} 32. Ra1 {[%emt 0:00:18] Inhibits Re1+.} Re2 {[%emt 0:04:27]} 33. Qh6+ {[%emt 0:08:16]} Kg8 {[%emt 0:00:04] Dancing on a razor blade.} 34. Qh7+ {[%emt 0:00:19]} Kf8 {[%emt 0:00:01]} 35. Rf3 {[%emt 0:00:13]} Qg7 {[%emt 0:03:29] Active counter play!} 36. Qh3 {[%emt 0:02:08]} Kg8 $40 {[%emt 0:01:18][%mdl 128] Black has some attack.} 37. Qd7 {[%emt 0:03:16]} Re7 {[%emt 0:00:50]} 38. Qc8+ {[%emt 0:02:42]} Qf8 {[%emt 0:00:11]} 39. Qf5 {[%emt 0:00:05]} Re5 {[%emt 0:01:06]} 40. Qh3 {[%emt 0:01:29]} Qe7 {[%emt 0:01:03]} 41. Qh6 {[%emt 0:32:22]} Qh4 {[%emt 0:33:19]} ({Much worse is} 41... Re1+ $6 42. Rxe1 Qxe1+ 43. Kh2 $11) 42. Qxh4 {[%emt 0:03:34]} Nxh4 {[%emt 0:00:03]} 43. Rh3 {[%emt 0:00:10]} Ng6 {[%emt 0:00:13][%cal Bh4g6,Bg6f4,Bf4e2,Be2c3][%mdl 32]} 44. Rd1 $2 {[%emt 0:00:13] This move loses the game for White.} (44. Re3 $17 {is a better defense.}) 44... Nf4 $19 {[%emt 0:00:41] Black has a decisive advantage.} 45. Rh4 {[%emt 0:05:49]} Ne2+ {[%emt 0:00:26]} 46. Kh2 {[%emt 0:00:05]} Nxc3 {[%emt 0:00:19]} 47. Rdd4 {[%emt 0:00:06]} Re4 {[%emt 0:05:45] Weighted Error Value: White=0.16 (very precise) /Black=0.06 (flawless)} 0-1

[Event "44th Chess Olympiad Open 2022"]
[Site "Chennai"]
[Date "2022.08.08"]
[Round "10.26"]
[White "Draskovic, Luka"]
[Black "Mhango, Banele"]
[Result "1/2-1/2"]
[ECO "A07"]
[WhiteElo "2503"]
[BlackElo "2238"]
[Annotator "TA"]
[PlyCount "100"]
[EventDate "2022.07.29"]
[EventType "team-tourn"]
[EventCountry "IND"]
[SourceTitle "playchess.com"]
[Source "ChessBase"]
[SourceQuality "1"]
[WhiteTeam "Montenegro"]
[BlackTeam "South Africa"]
[WhiteTeamCountry "MNE"]
[BlackTeamCountry "RSA"]
[TimeControl "40/5400+30:1800+30"]

{[%evp 9,100,14,21,0,0,-11,0,0,23,0,0,-2,0,0,-4,-8,0,0,-2,0,0,0,0,-10,0,-10,26,17,48,3,70,7,37,0,0,0,0,0,13,11,12,0,0,0,0,0,0,0,0,0,0,0,0,0,0,0,0,-10,-12,-24,-1,-31,-35,-47,0,-60,-57,-98,-106,-120,-83,-87,-65,-72,-79,-62,0,-2,0,-69,-22,-38,0,0,0,0,0,0,0,0,0,0,19]} 1. Nf3 {[%emt 0:00:21]} Nf6 {[%emt 0:00:19]} 2. g3 {[%emt 0:00:26]} d5 {[%emt 0:02:06]} 3. Bg2 {[%emt 0:01:46]} Bf5 {[%emt 0:01:54]} 4. c4 {[%emt 0:02:57]} e6 {[%emt 0:03:53]} 5. Qb3 {[%emt 0:04:26]} Na6 {[%emt 0:04:31]} 6. cxd5 {[%emt 0:11:25] A07: Réti Opening: New York and Capablanca Systems.} exd5 {[%emt 0:10:13]} 7. d3 {[%emt 0:11:48]} Nc5 {[%emt 0:00:37]} 8. Qc2 {[%emt 0:00:23]} h6 {[%emt 0:05:17]} 9. O-O {[%emt 0:00:24]} (9. Be3 $5 {[%cal Re3c5]} Ncd7 10. Nc3 $11) 9... Be7 {[%emt 0:00:36]} 10. b3 {[%emt 0:01:38]} O-O {[%emt 0:03:31]} 11. Bb2 {[%emt 0:00:20] [#]} Ne6 $146 {[%emt 0:04:10]} ({Predecessor:} 11... Re8 12. Nbd2 Bf8 13. Rfe1 a5 14. Rad1 Rxe2 15. Ne5 Rxe1+ 16. Rxe1 Ng4 17. Nxg4 Bxg4 {0-1 (100) Benidze,D (2469)-Zeynalov,R (2250) Baku 2019}) 12. Nbd2 {[%emt 0:00:21]} Bh7 {[%emt 0:00:35]} 13. Nd4 {[%emt 0:11:32]} Nxd4 {[%emt 0:03:47]} 14. Bxd4 {[%emt 0:00:06]} a5 {[%emt 0:02:50]} 15. Nf3 {[%emt 0:07:28]} c6 {[%emt 0:02:59]} 16. Rac1 {[%emt 0:07:02]} Ne8 {[%emt 0:10:13]} 17. e4 {[%emt 0:04:50]} Nd6 {[%emt 0:05:50]} 18. Qb2 {[%emt 0:02:55]} Ne8 {[%emt 0:09:27][%cal Bd6e8,Be8c7,Bc7a6,Ba6b4][%mdl 32]} 19. Rfe1 {[%emt 0:06:25]} Bf6 {[%emt 0:01:46]} (19... Bb4 $11) 20. Bxf6 {[%emt 0:06:41] White is much more active. The black rooks are badly placed.} (20. exd5 $1 $14 Qxd5 21. Ne5) 20... Qxf6 {[%emt 0:01:29]} 21. e5 {[%emt 0:01:18]} (21. Ne5 $5 {[%cal Re4d5]}) 21... Qe7 {[%emt 0:00:10]} 22. Qc3 {[%emt 0:00:35]} Nc7 {[%emt 0:00:31]} 23. Nd4 {[%emt 0:00:21]} Qb4 {[%emt 0:00:19]} 24. Bh3 {[%emt 0:02:06]} Na6 {[%emt 0:07:10]} 25. Bf5 {[%emt 0:02:45]} Qxc3 {[%emt 0:01:44]} 26. Bxh7+ {[%emt 0:00:27]} Kxh7 {[%emt 0:00:05]} 27. Rxc3 {[%emt 0:00:03]} c5 {[%emt 0:01:25]} 28. Nb5 {[%emt 0:01:35]} d4 {[%emt 0:00:05]} 29. Rc2 {[%emt 0:03:36]} Nb4 {[%emt 0:01:48][%csl LRc2,LRd3]} 30. Rd2 {[%emt 0:00:06]} a4 {[%emt 0:03:43]} 31. bxa4 {[%emt 0:01:43]} Rxa4 {[%emt 0:00:35]} 32. a3 {[%emt 0:00:19]} Nd5 $36 {[%emt 0:00:19][%mdl 2048] Black has the initiative.} 33. e6 {[%emt 0:00:53]} fxe6 {[%emt 0:00:26]} 34. Rxe6 {[%emt 0:00:09]} Rd8 {[%emt 0:02:37]} 35. Kg2 {[%emt 0:02:52]} Rd7 {[%emt 0:00:56]} 36. Rc2 {[%emt 0:01:46]} Ra5 {[%emt 0:01:59]} (36... Ra6 $15 37. Re5 Rg6) 37. a4 {[%emt 0:01:20]} ({But not} 37. Rxc5 $2 b6 38. Rxd5 Rxd5 $19) ({White should try} 37. Rd6 $1 $11 Rxd6 38. Nxd6) 37... b6 {[%emt 0:01:13]} 38. Rc4 {[%emt 0:00:24]} Kg8 {[%emt 0:03:14]} 39. Kf1 {[%emt 0:01:36]} Kf8 {[%emt 0:01:52]} 40. Rc6 {[%emt 0:01:57]} Ke7 {[%emt 0:03:15]} 41. Rg6 {[%emt 0:02:03]} Kf7 {[%emt 0:01:28]} 42. Rc6 {[%emt 0:02:40]} Ke7 {[%emt 0:04:56]} (42... Kf8 $15) 43. Rg6 $1 $11 {[%emt 0:00:43]} Kf7 {[%emt 0:01:20]} ({Black should play} 43... Kd8 $11) 44. Rc6 $15 {[%emt 0:00:06]} Ra8 {[%emt 0:00:34]} (44... Kf8 $1 $15 {feels stronger.}) 45. Nd6+ $11 {[%emt 0:02:21]} Kf8 {[%emt 0:00:57]} 46. Nc8 {[%emt 0:02:59] The position is equal.} Rb7 {[%emt 0:00:40]} 47. Rd6 {[%emt 0:00:59] [#] Strongly threatening Rd8+.} Rxc8 {[%emt 0:00:30]} 48. Rxd5 {[%emt 0:00:11]} Ra8 {[%emt 0:00:17]} 49. Rd6 {[%emt 0:01:53]} Kf7 {[%emt 0:01:55]} 50. Rc6 {[%emt 0:00:41]} Ra5 {[%emt 0:02:20] Weighted Error Value: White=0.10 (very precise) /Black=0.14 (very precise)} 1/2-1/2

[Event "44th Chess Olympiad Open 2022"]
[Site "Chennai"]
[Date "2022.08.08"]
[Round "10.26"]
[White "Kobese, Watu"]
[Black "Blagojevic, Dragisa"]
[Result "1/2-1/2"]
[ECO "C54"]
[WhiteElo "2311"]
[BlackElo "2499"]
[Annotator "TA"]
[PlyCount "77"]
[EventDate "2022.07.29"]
[EventType "team-tourn"]
[EventCountry "IND"]
[SourceTitle "playchess.com"]
[Source "ChessBase"]
[SourceQuality "1"]
[WhiteTeam "South Africa"]
[BlackTeam "Montenegro"]
[WhiteTeamCountry "RSA"]
[BlackTeamCountry "MNE"]
[TimeControl "40/5400+30:1800+30"]

{[%evp 9,77,1,0,-29,-25,-59,-50,-68,-57,-49,-15,-26,-17,-9,0,13,1,0,2,0,0,0,0,0,0,-6,-7,-24,-18,-35,-6,-25,0,-24,0,0,-5,-13,0,0,0,12,4,-52,-43,-41,-48,-33,-54,-43,-54,-46,-22,-40,-54,-66,-39,-104,-125,-215,-187,-160,-19,-22,0,-133,0,-33,0,-133]} 1. e4 {[%emt 0:00:07]} e5 {[%emt 0:00:08][%cal Be7e5,Be5d4][%mdl 32]} 2. Nf3 {[%emt 0:00:07]} Nc6 {[%emt 0:00:12]} 3. Bc4 {[%emt 0:00:11]} Bc5 {[%emt 0:00:22]} 4. c3 {[%emt 0:00:35]} Nf6 {[%emt 0:00:06]} 5. d4 {[%emt 0:00:45]} exd4 {[%emt 0:00:10]} 6. b4 {[%emt 0:00:22] C54: Giuoco Piano: 4 c3 Nf6, main lines with 5 d4 and 5 d3.} Be7 {[%emt 0:02:03]} 7. e5 {[%emt 0:06:03]} Ne4 {[%emt 0:03:03]} 8. b5 {[%emt 0:02:23] Black is slightly better.} Na5 {[%emt 0:07:14]} 9. Bd3 {[%emt 0:00:52]} Nc5 {[%emt 0:06:30]} 10. cxd4 {[%emt 0:12:48]} Nxd3+ {[%emt 0:02:08]} 11. Qxd3 {[%emt 0:00:07]} d6 {[%emt 0:17:23]} 12. Bd2 {[%emt 0:08:55]} b6 {[%emt 0:03:35] [#]} 13. O-O $146 {[%emt 0:11:53]} ({Predecessor:} 13. exd6 Qxd6 14. O-O O-O 15. Nc3 Bb7 16. Ne4 Qg6 17. Rfe1 Rfe8 18. Ne5 Bxe4 19. Rxe4 {0-1 (48) Buchholz,M (1720)-Doll,R (1803) Willingen 2021}) 13... O-O {[%emt 0:09:21]} 14. Bxa5 {[%emt 0:13:42]} bxa5 {[%emt 0:00:00]} 15. Qe4 {[%emt 0:01:06]} Rb8 {[%emt 0:00:00]} 16. Nc3 {[%emt 0:04:38]} Bb7 {[%emt 0:00:00]} 17. Qe3 {[%emt 0:04:56]} Re8 {[%emt 0:06:00]} 18. Rfd1 {[%emt 0:03:53]} Bf8 {[%emt 0:01:08]} 19. a4 {[%emt 0:02:32]} Qd7 {[%emt 0:03:20]} 20. Qf4 {[%emt 0:06:20]} h6 {[%emt 0:04:01]} 21. Ne4 {[%emt 0:02:21]} a6 {[%emt 0:03:37]} 22. bxa6 {[%emt 0:02:31]} Bxa6 {[%emt 0:00:09]} 23. Qxh6 $1 {[%emt 0:00:20] Threatens to win with Qg5.} Qf5 {[%emt 0:11:32]} 24. Qe3 {[%emt 0:00:34]} Bb7 {[%emt 0:02:35][%cal Ba6b7,Bb7d5,Bd5b3][%mdl 32]} 25. Ng3 {[%emt 0:01:55]} Qe6 {[%emt 0:04:07]} 26. d5 {[%emt 0:01:52]} (26. Ng5 $11 Qg6 27. Rac1) 26... Bxd5 $15 {[%emt 0:03:16]} 27. Ng5 {[%emt 0:01:26]} Qxe5 {[%emt 0:00:13]} 28. Qxe5 {[%emt 0:00:13]} Rxe5 {[%emt 0:00:05]} 29. f4 {[%emt 0:00:06] [#]} Rxg5 {[%emt 0:00:48]} 30. fxg5 {[%emt 0:00:14]} Bb3 {[%emt 0:02:59]} 31. Rdc1 {[%emt 0:04:50]} c5 $1 {[%emt 0:00:55]} 32. Ne4 {[%emt 0:00:14]} Rb4 {[%emt 0:01:25][%csl LRa4,LRe4]} 33. Re1 {[%emt 0:03:52]} (33. Nd2 $15) 33... d5 $17 {[%emt 0:01:13]} ({Much weaker is} 33... Rxa4 $6 34. Rxa4 Bxa4 35. Nc3 $11) ({Of course not} 33... Bxa4 $6 34. Nc3 Bc6 35. Rxa5 $15) 34. Nd2 {[%emt 0:00:43]} (34. Nf2 $17 {is a better defense.}) 34... Bxa4 $19 {[%emt 0:00:31] And now ...c4 would win.} 35. Reb1 {[%emt 0:00:09] [#]} Bc2 {[%emt 0:02:22] This bishop pair is nice.} (35... Rxb1+ $1 $17 36. Rxb1 c4) 36. Rc1 $11 {[%emt 0:01:08]} Ba4 {[%emt 0:01:08]} ({Black should try} 36... Rb2 $11 37. Rxa5 Kh7) 37. Rcb1 $1 $17 {[%emt 0:00:08] [#]} Bc2 {[%emt 0:00:36]} ({Black should play} 37... Rxb1+ $1 $17 38. Rxb1 c4) 38. Rc1 $15 {[%emt 0:00:33]} Ba4 {[%emt 0:00:23]} (38... Rb2 $15 39. Rxa5 Kh7) 39. Rcb1 $1 {[%emt 0:00:39] Weighted Error Value: White=0.14 (very precise) /Black=0.18 (very precise)} 1/2-1/2

[Event "44th Chess Olympiad Open 2022"]
[Site "Chennai"]
[Date "2022.08.08"]
[Round "10.26"]
[White "Barrish, Daniel"]
[Black "Djukic, Nikola"]
[Result "0-1"]
[ECO "E81"]
[WhiteElo "2283"]
[BlackElo "2526"]
[Annotator "TA"]
[PlyCount "68"]
[EventDate "2022.07.29"]
[EventType "team-tourn"]
[EventCountry "IND"]
[SourceTitle "playchess.com"]
[Source "ChessBase"]
[SourceQuality "1"]
[WhiteTeam "South Africa"]
[BlackTeam "Montenegro"]
[WhiteTeamCountry "RSA"]
[BlackTeamCountry "MNE"]
[TimeControl "40/5400+30:1800+30"]

{[%evp 17,68,29,37,33,45,40,49,41,45,51,72,-301,-287,-278,-304,-294,-287,-297,-301,-302,-292,-303,-292,-275,-281,-575,-595,-595,-572,-672,-670,-885,-885,-866,-848,-1042,-1029,-975,-914,-2402,-2402,-2804,-2595,-5346,-2003,-1637,-1949,-1895,-1841,-1508,-1597,-29989,-29988]} 1. d4 {[%emt 0:00:12]} Nf6 {[%emt 0:00:06]} 2. c4 {[%emt 0:00:11]} g6 {[%emt 0:00:06]} 3. Nc3 {[%emt 0:00:12]} Bg7 {[%emt 0:00:06]} 4. e4 {[%emt 0:00:08]} d6 {[%emt 0:00:05]} 5. f3 {[%emt 0:00:07]} O-O {[%emt 0:00:12]} 6. Be3 {[%emt 0:00:11]} c5 {[%emt 0:00:47]} 7. Nge2 {[%emt 0:00:18]} Nc6 {[%emt 0:00:47]} 8. d5 {[%emt 0:00:14]} Ne5 {[%emt 0:00:07]} 9. Ng3 {[%emt 0:00:08]} h5 {[%emt 0:00:52][%cal Bh7h5,Bh5h4][%mdl 32] aiming for ...h4.} 10. Be2 {[%emt 0:00:59] E81: King's Indian: Sämisch: 6th move deviations (including 6 Be3 c6).} h4 {[%emt 0:01:53]} 11. Nf1 {[%emt 0:00:15]} e6 {[%emt 0:00:33]} 12. Bg5 {[%emt 0:01:25] White is slightly better.} exd5 {[%emt 0:00:25]} 13. Nxd5 {[%emt 0:02:35]} Be6 {[%emt 0:00:19][%cal Ob7b5] [#]} 14. Nfe3 $146 {[%emt 0:01:45][%mdl 8192] [#]} (14. Bxh4 $16 {and life is bright.} Bxd5 15. cxd5) ({Predecessor:} 14. Bxh4 b5 15. Bxf6 Bxf6 16. cxb5 Bxd5 17. Qxd5 c4 18. f4 Rc8 19. fxe5 Bxe5 20. Bxc4 Bxb2 {1-0 (26) Lou,Y (2472)-Urazayev,A (2429) Tornelo INT 2021}) 14... Nxd5 $1 $19 {[%emt 0:09:00][%cal Bf6d5,Bd5e3,Be3g2,Bg2f4,Bf4e2][%mdl 32]} 15. Bxd8 {[%emt 0:00:54]} Nxe3 {[%emt 0:00:06]} 16. Qb3 {[%emt 0:04:27]} Nxg2+ {[%emt 0:00:56]} 17. Kf2 {[%emt 0:03:31] And now Bg5 would win.} Nf4 {[%emt 0:01:20]} 18. Be7 {[%emt 0:06:36]} Nxe2 {[%emt 0:00:28] Chess con chili.} 19. Bxf8 {[%emt 0:03:30]} Rxf8 {[%emt 0:03:16]} 20. Qxb7 {[%emt 0:03:08]} Nd4 {[%emt 0:18:01]} (20... Bxc4 $2 21. b3 Bd3 22. Rhd1 $19) 21. b3 $2 {[%emt 0:11:58]} (21. f4 Nd3+ 22. Ke3 Bxc4 23. Rad1 Nxb2 24. Rd2 (24. Qxb2 $2 Nf5+ 25. exf5 Bxb2 $19)) 21... f5 {[%emt 0:05:37]} ({Weaker is} 21... Nd3+ 22. Ke3 Ne5 23. f4 $19) 22. exf5 {[%emt 0:03:45]} Bxf5 {[%emt 0:01:19] Threatens to win with ...Nd3+.} 23. Rhf1 {[%emt 0:13:55]} Nexf3 {[%emt 0:10:06]} 24. Qd5+ {[%emt 0:16:59]} Be6 {[%emt 0:04:16] A strong pair of Bishops.} 25. Qxd6 {[%emt 0:00:35]} Nd2+ {[%emt 0:04:28][%mdl 64] Discovered Attack} ({Avoid the trap} 25... Nxh2+ $2 26. Kg1 Nxf1 27. Rxf1 $19) 26. Kg1 {[%emt 0:03:27]} Nxf1 {[%emt 0:00:48]} 27. Re1 {[%emt 0:03:17]} Bh3 {[%emt 0:06:38]} 28. Qd5+ {[%emt 0:00:48]} Kh8 {[%emt 0:00:53][%cal Of1e3] ( -> ...Ne3!)} 29. Re4 {[%emt 0:03:34] Against Ne3} Nf3+ {[%emt 0:02:02]} 30. Kh1 {[%emt 0:00:06]} N1d2 {[%emt 0:01:28]} 31. Re3 {[%emt 0:00:54]} Bg4 {[%emt 0:07:03]} 32. h3 {[%emt 0:02:11]} Nf1 {[%emt 0:04:31]} 33. hxg4 {[%emt 0:03:03]} Nxe3 {[%emt 0:00:09]} 34. Qxc5 {[%emt 0:00:23]} Nd4 {[%emt 0:01:10] White got outplayed after the opening.  Weighted Error Value: White=1.39/Black=0.26 (precise)} 0-1